[Event "Titled Tuesday Blitz July 20 2021"]
[White "Hebden, Mark L"]
[Black "Eynullayev, Atilla"]
[WhiteFideId "400084"]
[BlackFideId "13413570"]
[WhiteElo "2457"]
[BlackElo "1997"]
[Result "1-0"]
[Round "11"]
[TimeControl "180+1"]
[Date "2021.07.21"]
[WhiteClock "0:00:29"]
[BlackClock "0:00:19"]

1. d4 {[%clk 0:03:00]}  Nf6 {[%clk 0:02:59]} 2. Nf3 {[%clk 0:03:01]}  e6 {[%clk 0:02:59]} 3. c3 {[%clk 0:03:00]}  Nc6 {[%clk 0:02:58]} 4. Bg5 {[%clk 0:03:00]}  h6 {[%clk 0:02:58]} 5. Bxf6 {[%clk 0:03:00]}  Qxf6 {[%clk 0:02:57]} 6. e4 {[%clk 0:03:00]}  d6 {[%clk 0:02:58]} 7. Bb5 {[%clk 0:02:59]}  Bd7 {[%clk 0:02:53]} 8. O-O {[%clk 0:02:58]}  g5 {[%clk 0:02:53]} 9. Re1 {[%clk 0:02:57]}  g4 {[%clk 0:02:52]} 10. Nfd2 {[%clk 0:02:56]}  h5 {[%clk 0:02:52]} 11. Nc4 {[%clk 0:02:53]}  a6 {[%clk 0:02:50]} 12. Bxc6 {[%clk 0:02:44]}  Bxc6 {[%clk 0:02:49]} 13. d5 {[%clk 0:02:43]}  Bb5 {[%clk 0:02:45]} 14. Nba3 {[%clk 0:02:41]}  Bxc4 {[%clk 0:01:55]} 15. Nxc4 {[%clk 0:02:40]}  O-O-O {[%clk 0:01:54]} 16. a4 {[%clk 0:02:36]}  Rg8 {[%clk 0:01:36]} 17. Ra3 {[%clk 0:02:27]}  h4 {[%clk 0:01:36]} 18. g3 {[%clk 0:02:08]}  h3 {[%clk 0:01:36]} 19. b4 {[%clk 0:02:04]}  exd5 {[%clk 0:01:28]} 20. Qxd5 {[%clk 0:01:54]}  Qf3 {[%clk 0:01:16]} 21. Ne3 {[%clk 0:01:51]}  Bh6 {[%clk 0:01:15]} 22. Qf5+ {[%clk 0:01:50]}  Qxf5 {[%clk 0:01:09]} 23. Nxf5 {[%clk 0:01:49]}  Bg5 {[%clk 0:01:09]} 24. c4 {[%clk 0:01:41]}  Rge8 {[%clk 0:01:07]} 25. Kf1 {[%clk 0:01:37]}  Re5 {[%clk 0:01:07]} 26. Ra2 {[%clk 0:01:29]}  Rde8 {[%clk 0:01:07]} 27. Rae2 {[%clk 0:01:28]}  a5 {[%clk 0:01:02]} 28. b5 {[%clk 0:01:24]}  Rc5 {[%clk 0:01:01]} 29. Rc2 {[%clk 0:01:16]}  Kd7 {[%clk 0:00:56]} 30. f3 {[%clk 0:01:12]}  gxf3 {[%clk 0:00:55]} 31. Kf2 {[%clk 0:01:12]}  Rce5 {[%clk 0:00:50]} 32. g4 {[%clk 0:00:54]}  Rxe4 {[%clk 0:00:49]} 33. Rxe4 {[%clk 0:00:54]}  Rxe4 {[%clk 0:00:50]} 34. Kxf3 {[%clk 0:00:54]}  Re1 {[%clk 0:00:46]} 35. c5 {[%clk 0:00:52]}  dxc5 {[%clk 0:00:19]} 36. Rxc5 {[%clk 0:00:50]}  f6 {[%clk 0:00:20]} 37. Rd5+ {[%clk 0:00:48]}  Ke6 {[%clk 0:00:18]} 38. Rd4 {[%clk 0:00:47]}  Rb1 {[%clk 0:00:18]} 39. Rc4 {[%clk 0:00:45]}  Kd7 {[%clk 0:00:16]} 40. Nd4 {[%clk 0:00:40]}  Rb4 {[%clk 0:00:16]} 41. Rxb4 {[%clk 0:00:37]}  axb4 {[%clk 0:00:17]} 42. Ke4 {[%clk 0:00:37]}  Kd6 {[%clk 0:00:17]} 43. a5 {[%clk 0:00:32]}  Kc5 {[%clk 0:00:16]} 44. a6 {[%clk 0:00:31]}  bxa6 {[%clk 0:00:16]} 45. bxa6 {[%clk 0:00:31]}  Kb6 {[%clk 0:00:17]} 46. a7 {[%clk 0:00:31]}  Kxa7 {[%clk 0:00:17]} 47. Nc6+ {[%clk 0:00:31]}  Kb6 {[%clk 0:00:17]} 48. Nxb4 {[%clk 0:00:32]}  c5 {[%clk 0:00:17]} 49. Nd5+ {[%clk 0:00:32]}  Kb5 {[%clk 0:00:17]} 50. Nc3+ {[%clk 0:00:31]}  Kb4 {[%clk 0:00:17]} 51. Kd3 {[%clk 0:00:31]}  c4+ {[%clk 0:00:17]} 52. Kd4 {[%clk 0:00:31]}  Bf4 {[%clk 0:00:17]} 53. Nd5+ {[%clk 0:00:31]}  Kb3 {[%clk 0:00:18]} 54. Nxf4 {[%clk 0:00:31]}  c3 {[%clk 0:00:18]} 55. Kd3 {[%clk 0:00:29]}  c2 {[%clk 0:00:19]} 56. Kd2 {[%clk 0:00:29]}  Kb2 {[%clk 0:00:19]} 57. Nd3+ {[%clk 0:00:29]} 1-0


[Site "https://www.chess.com"]

[Event "Titled Tuesday Blitz July 20 2021"]
[White "Indjic, Aleksandar"]
[Black "Moroni, Luca Jr"]
[WhiteFideId "911925"]
[BlackFideId "865834"]
[WhiteElo "2643"]
[BlackElo "2491"]
[Result "0-1"]
[Round "11"]
[TimeControl "180+1"]
[Date "2021.07.20"]
[WhiteClock "0:00:04"]
[BlackClock "0:00:06"]

1. d4 {[%clk 0:03:00]}  g6 {[%clk 0:02:59]} 2. c4 {[%clk 0:02:59]}  Bg7 {[%clk 0:03:00]} 3. Nf3 {[%clk 0:03:00]}  d6 {[%clk 0:03:00]} 4. Nc3 {[%clk 0:02:59]}  Nc6 {[%clk 0:03:01]} 5. Bg5 {[%clk 0:02:55]}  h6 {[%clk 0:02:57]} 6. Be3 {[%clk 0:02:51]}  Nf6 {[%clk 0:02:56]} 7. h3 {[%clk 0:02:50]}  O-O {[%clk 0:02:48]} 8. g4 {[%clk 0:02:49]}  d5 {[%clk 0:02:40]} 9. Qd2 {[%clk 0:02:09]}  Ne4 {[%clk 0:02:28]} 10. Qc1 {[%clk 0:02:09]}  Nxc3 {[%clk 0:02:22]} 11. bxc3 {[%clk 0:02:10]}  Kh7 {[%clk 0:02:07]} 12. cxd5 {[%clk 0:02:05]}  Qxd5 {[%clk 0:02:08]} 13. Bg2 {[%clk 0:02:05]}  Qd6 {[%clk 0:01:52]} 14. O-O {[%clk 0:02:03]}  e5 {[%clk 0:01:49]} 15. d5 {[%clk 0:02:01]}  Ne7 {[%clk 0:01:47]} 16. c4 {[%clk 0:02:01]}  f5 {[%clk 0:01:45]} 17. c5 {[%clk 0:02:00]}  Qd8 {[%clk 0:01:40]} 18. gxf5 {[%clk 0:01:49]}  Nxf5 {[%clk 0:01:33]} 19. Nd2 {[%clk 0:01:26]}  Nh4 {[%clk 0:01:32]} 20. Qc4 {[%clk 0:01:23]}  Nxg2 {[%clk 0:01:11]} 21. Kxg2 {[%clk 0:01:24]}  b5 {[%clk 0:01:11]} 22. Qb3 {[%clk 0:01:18]}  Qh4 {[%clk 0:01:09]} 23. Rh1 {[%clk 0:01:18]}  Qh5 {[%clk 0:00:56]} 24. f3 {[%clk 0:01:13]}  Rf4 {[%clk 0:00:51]} 25. Bxf4 {[%clk 0:00:47]}  exf4 {[%clk 0:00:52]} 26. Rag1 {[%clk 0:00:46]}  Qh4 {[%clk 0:00:40]} 27. Ne4 {[%clk 0:00:42]}  Bf5 {[%clk 0:00:36]} 28. d6 {[%clk 0:00:38]}  cxd6 {[%clk 0:00:35]} 29. cxd6 {[%clk 0:00:37]}  Re8 {[%clk 0:00:35]} 30. Qd3 {[%clk 0:00:27]}  b4 {[%clk 0:00:19]} 31. Rc1 {[%clk 0:00:23]}  Bc3 {[%clk 0:00:12]} 32. d7 {[%clk 0:00:21]}  Rd8 {[%clk 0:00:11]} 33. Rcd1 {[%clk 0:00:17]}  Bg7 {[%clk 0:00:07]} 34. Qb3 {[%clk 0:00:14]}  Rxd7 {[%clk 0:00:05]} 35. Rxd7 {[%clk 0:00:13]}  Bxd7 {[%clk 0:00:06]} 36. Qd3 {[%clk 0:00:12]}  Bf5 {[%clk 0:00:07]} 37. Qb3 {[%clk 0:00:11]}  a5 {[%clk 0:00:07]} 38. Qd3 {[%clk 0:00:11]}  a4 {[%clk 0:00:07]} 39. Kg1 {[%clk 0:00:10]}  b3 {[%clk 0:00:06]} 40. a3 {[%clk 0:00:10]}  b2 {[%clk 0:00:06]} 41. Kg2 {[%clk 0:00:11]}  Qe7 {[%clk 0:00:04]} 42. Rb1 {[%clk 0:00:10]}  Qh4 {[%clk 0:00:04]} 43. Rh1 {[%clk 0:00:08]}  Qe7 {[%clk 0:00:04]} 44. Rb1 {[%clk 0:00:08]}  Bxe4 {[%clk 0:00:03]} 45. fxe4 {[%clk 0:00:08]}  Qg5+ {[%clk 0:00:04]} 46. Kf1 {[%clk 0:00:08]}  Qe5 {[%clk 0:00:05]} 47. Ke1 {[%clk 0:00:08]}  Qe6 {[%clk 0:00:05]} 48. Kd1 {[%clk 0:00:08]}  Qa2 {[%clk 0:00:05]} 49. Kc2 {[%clk 0:00:08]}  Qe6 {[%clk 0:00:05]} 50. Qd5 {[%clk 0:00:08]}  Qe7 {[%clk 0:00:05]} 51. Qd3 {[%clk 0:00:08]}  Qc5+ {[%clk 0:00:06]} 52. Kd1 {[%clk 0:00:07]}  Bd4 {[%clk 0:00:06]} 53. Qc2 {[%clk 0:00:06]}  Qxa3 {[%clk 0:00:05]} 54. e5 {[%clk 0:00:05]}  Bxe5 {[%clk 0:00:05]} 55. Qd3 {[%clk 0:00:05]}  Qxd3+ {[%clk 0:00:04]} 56. exd3 {[%clk 0:00:05]}  a3 {[%clk 0:00:05]} 57. d4 {[%clk 0:00:04]}  Bxd4 {[%clk 0:00:05]} 58. Kc2 {[%clk 0:00:04]}  a2 {[%clk 0:00:06]} 0-1


[Site "https://www.chess.com"]

[Event "Titled Tuesday Blitz July 20 2021"]
[White "Iskusnyh, Sergei"]
[Black "Siva Mahadevan"]
[WhiteFideId "4120027"]
[BlackFideId "25043153"]
[WhiteElo "2492"]
[BlackElo "2203"]
[Result "1-0"]
[Round "11"]
[TimeControl "180+1"]
[Date "2021.07.20"]
[WhiteClock "0:00:47"]
[BlackClock "0:01:36"]

1. d4 {[%clk 0:03:00]}  Nf6 {[%clk 0:02:59]} 2. c4 {[%clk 0:03:00]}  g6 {[%clk 0:03:00]} 3. g3 {[%clk 0:03:01]}  Bg7 {[%clk 0:03:00]} 4. Bg2 {[%clk 0:03:01]}  O-O {[%clk 0:03:01]} 5. Nc3 {[%clk 0:03:02]}  d6 {[%clk 0:03:01]} 6. Nf3 {[%clk 0:03:02]}  Nbd7 {[%clk 0:03:02]} 7. O-O {[%clk 0:03:03]}  e5 {[%clk 0:03:02]} 8. e4 {[%clk 0:03:03]}  exd4 {[%clk 0:03:03]} 9. Nxd4 {[%clk 0:03:03]}  Re8 {[%clk 0:03:04]} 10. h3 {[%clk 0:02:59]}  a6 {[%clk 0:03:04]} 11. Be3 {[%clk 0:02:55]}  Rb8 {[%clk 0:03:03]} 12. Rc1 {[%clk 0:02:52]}  Ne5 {[%clk 0:03:02]} 13. b3 {[%clk 0:02:49]}  c5 {[%clk 0:03:02]} 14. Nde2 {[%clk 0:02:48]}  b5 {[%clk 0:03:02]} 15. f4 {[%clk 0:02:48]}  Ned7 {[%clk 0:03:02]} 16. Qxd6 {[%clk 0:02:47]}  b4 {[%clk 0:03:02]} 17. e5 {[%clk 0:02:33]}  bxc3 {[%clk 0:03:00]} 18. Nxc3 {[%clk 0:02:30]}  Rb6 {[%clk 0:03:00]} 19. Qd2 {[%clk 0:02:20]}  Rbe6 {[%clk 0:02:50]} 20. Bf2 {[%clk 0:02:08]}  Nh5 {[%clk 0:02:31]} 21. Rcd1 {[%clk 0:01:53]}  Qa5 {[%clk 0:02:10]} 22. Nd5 {[%clk 0:01:49]}  Qxd2 {[%clk 0:02:07]} 23. Rxd2 {[%clk 0:01:49]}  Nxe5 {[%clk 0:02:05]} 24. fxe5 {[%clk 0:01:45]}  Bxe5 {[%clk 0:02:05]} 25. g4 {[%clk 0:01:21]}  Nf4 {[%clk 0:02:04]} 26. Nxf4 {[%clk 0:01:16]}  Bxf4 {[%clk 0:02:04]} 27. Rd5 {[%clk 0:01:16]}  Re2 {[%clk 0:02:00]} 28. Bxc5 {[%clk 0:01:13]}  Bh6 {[%clk 0:01:53]} 29. Rf2 {[%clk 0:01:11]}  Re1+ {[%clk 0:01:51]} 30. Kh2 {[%clk 0:01:07]}  Be6 {[%clk 0:01:48]} 31. Rd3 {[%clk 0:00:58]}  a5 {[%clk 0:01:46]} 32. Bd5 {[%clk 0:00:57]}  Bxd5 {[%clk 0:01:43]} 33. cxd5 {[%clk 0:00:54]}  a4 {[%clk 0:01:41]} 34. d6 {[%clk 0:00:54]}  Rd8 {[%clk 0:01:38]} 35. d7 {[%clk 0:00:53]}  Re6 {[%clk 0:01:38]} 36. bxa4 {[%clk 0:00:49]}  Rc6 {[%clk 0:01:36]} 37. Be7 {[%clk 0:00:47]} 1-0


[Site "https://www.chess.com"]

[Event "Titled Tuesday Blitz July 20 2021"]
[White "Janaszak, Dawid"]
[Black "Filippova, Margarita"]
[WhiteFideId "1119206"]
[BlackFideId "34199680"]
[WhiteElo "2332"]
[BlackElo "1829"]
[Result "0-1"]
[Round "11"]
[TimeControl "180+1"]
[Date "2021.07.21"]
[WhiteClock "0:00:52"]
[BlackClock "0:01:48"]

1. e4 {[%clk 0:02:58]}  e5 {[%clk 0:02:55]} 2. Nc3 {[%clk 0:02:57]}  Nc6 {[%clk 0:02:55]} 3. Bc4 {[%clk 0:02:55]}  Nf6 {[%clk 0:02:54]} 4. d3 {[%clk 0:02:55]}  Bc5 {[%clk 0:02:52]} 5. Nf3 {[%clk 0:02:46]}  O-O {[%clk 0:02:51]} 6. Bg5 {[%clk 0:02:44]}  h6 {[%clk 0:02:43]} 7. Bh4 {[%clk 0:02:43]}  Be7 {[%clk 0:02:43]} 8. Qd2 {[%clk 0:02:38]}  d6 {[%clk 0:02:37]} 9. O-O-O {[%clk 0:02:36]}  Be6 {[%clk 0:02:31]} 10. Bxe6 {[%clk 0:02:00]}  fxe6 {[%clk 0:02:26]} 11. Bg3 {[%clk 0:01:44]}  Nd4 {[%clk 0:02:19]} 12. Nxd4 {[%clk 0:01:40]}  exd4 {[%clk 0:02:19]} 13. Ne2 {[%clk 0:01:41]}  e5 {[%clk 0:02:16]} 14. Kb1 {[%clk 0:01:37]}  a5 {[%clk 0:02:14]} 15. f4 {[%clk 0:01:34]}  Ng4 {[%clk 0:02:09]} 16. Nc1 {[%clk 0:01:10]}  Bf6 {[%clk 0:02:04]} 17. f5 {[%clk 0:01:06]}  c5 {[%clk 0:02:01]} 18. Bf2 {[%clk 0:00:58]}  a4 {[%clk 0:01:59]} 19. h3 {[%clk 0:00:54]}  Nxf2 {[%clk 0:01:55]} 20. Qxf2 {[%clk 0:00:54]}  Bg5 {[%clk 0:01:52]} 21. h4 {[%clk 0:00:52]}  Be3 {[%clk 0:01:50]} 22. g3 {[%clk 0:00:52]}  Bxf2 {[%clk 0:01:48]} 0-1


[Site "https://www.chess.com"]

[Event "Titled Tuesday Blitz July 20 2021"]
[White "Kobalia, Mikhail"]
[Black "Arabidze, Meri"]
[WhiteFideId "4119150"]
[BlackFideId "13604040"]
[WhiteElo "2569"]
[BlackElo "2432"]
[Result "1-0"]
[Round "11"]
[TimeControl "180+1"]
[Date "2021.07.20"]
[WhiteClock "0:01:00"]
[BlackClock "0:00:02"]

1. e4 {[%clk 0:03:00]}  c5 {[%clk 0:03:00]} 2. Nf3 {[%clk 0:03:00]}  e6 {[%clk 0:03:00]} 3. g3 {[%clk 0:03:00]}  Nc6 {[%clk 0:02:59]} 4. Bg2 {[%clk 0:03:00]}  Nf6 {[%clk 0:02:56]} 5. Qe2 {[%clk 0:03:00]}  d6 {[%clk 0:02:54]} 6. O-O {[%clk 0:02:59]}  Be7 {[%clk 0:02:54]} 7. c3 {[%clk 0:03:00]}  O-O {[%clk 0:02:54]} 8. Rd1 {[%clk 0:03:00]}  Bd7 {[%clk 0:02:53]} 9. d4 {[%clk 0:02:52]}  cxd4 {[%clk 0:02:54]} 10. cxd4 {[%clk 0:02:52]}  d5 {[%clk 0:02:55]} 11. e5 {[%clk 0:02:52]}  Ne4 {[%clk 0:02:55]} 12. Ne1 {[%clk 0:02:53]}  Rc8 {[%clk 0:02:35]} 13. Be3 {[%clk 0:02:51]}  h6 {[%clk 0:02:28]} 14. f3 {[%clk 0:02:51]}  Ng5 {[%clk 0:02:28]} 15. Nc3 {[%clk 0:02:45]}  Na5 {[%clk 0:02:24]} 16. Nd3 {[%clk 0:02:39]}  Nc4 {[%clk 0:02:22]} 17. Bf2 {[%clk 0:02:39]}  b5 {[%clk 0:02:20]} 18. b3 {[%clk 0:02:28]}  Na3 {[%clk 0:02:15]} 19. Rdc1 {[%clk 0:02:21]}  b4 {[%clk 0:02:12]} 20. Nd1 {[%clk 0:02:20]}  Bb5 {[%clk 0:02:06]} 21. Qd2 {[%clk 0:02:15]}  a5 {[%clk 0:02:03]} 22. N1b2 {[%clk 0:02:14]}  Bxd3 {[%clk 0:01:33]} 23. Nxd3 {[%clk 0:02:11]}  Nb5 {[%clk 0:01:31]} 24. Nf4 {[%clk 0:01:53]}  Rc3 {[%clk 0:01:26]} 25. a4 {[%clk 0:01:46]}  bxa3 {[%clk 0:00:50]} 26. Rxc3 {[%clk 0:01:43]}  Bb4 {[%clk 0:00:50]} 27. Ne2 {[%clk 0:01:43]}  Nxc3 {[%clk 0:00:43]} 28. Nxc3 {[%clk 0:01:42]}  Qc7 {[%clk 0:00:40]} 29. Be1 {[%clk 0:01:38]}  Rc8 {[%clk 0:00:39]} 30. Rc1 {[%clk 0:01:38]}  Qb6 {[%clk 0:00:21]} 31. Qd1 {[%clk 0:01:28]}  a2 {[%clk 0:00:16]} 32. Nxa2 {[%clk 0:01:25]}  Rxc1 {[%clk 0:00:16]} 33. Nxc1 {[%clk 0:01:25]}  Bxe1 {[%clk 0:00:16]} 34. Qxe1 {[%clk 0:01:25]}  Qxd4+ {[%clk 0:00:17]} 35. Kh1 {[%clk 0:01:23]}  Qb2 {[%clk 0:00:16]} 36. h4 {[%clk 0:01:18]}  Nh7 {[%clk 0:00:16]} 37. Bf1 {[%clk 0:01:12]}  Nf8 {[%clk 0:00:16]} 38. Nd3 {[%clk 0:01:12]}  Qxb3 {[%clk 0:00:15]} 39. Qxa5 {[%clk 0:01:11]}  Qd1 {[%clk 0:00:15]} 40. Kg2 {[%clk 0:01:10]}  h5 {[%clk 0:00:15]} 41. Qd8 {[%clk 0:01:05]}  Qd2+ {[%clk 0:00:13]} 42. Nf2 {[%clk 0:01:05]}  Qe3 {[%clk 0:00:12]} 43. f4 {[%clk 0:01:04]}  g6 {[%clk 0:00:09]} 44. Bb5 {[%clk 0:01:04]}  d4 {[%clk 0:00:04]} 45. Qe7 {[%clk 0:01:00]}  d3 {[%clk 0:00:03]} 46. Be8 {[%clk 0:01:00]}  d2 {[%clk 0:00:02]} 47. Qxf7+ {[%clk 0:01:00]} 1-0


[Site "https://www.chess.com"]

[Event "Titled Tuesday Blitz July 20 2021"]
[White "Kretov, Evgenij"]
[Black "Arnold, Ken"]
[WhiteFideId "4167821"]
[BlackFideId "2056836"]
[WhiteElo "2400"]
[BlackElo "2529"]
[Result "1-0"]
[Round "11"]
[TimeControl "180+1"]
[Date "2021.07.20"]
[WhiteClock "0:00:25"]
[BlackClock "0:00:05"]

1. d4 {[%clk 0:03:00]}  Nf6 {[%clk 0:02:59]} 2. c4 {[%clk 0:03:01]}  e6 {[%clk 0:02:59]} 3. Nc3 {[%clk 0:03:01]}  d5 {[%clk 0:02:58]} 4. cxd5 {[%clk 0:02:59]}  exd5 {[%clk 0:02:58]} 5. Bg5 {[%clk 0:02:59]}  c6 {[%clk 0:02:58]} 6. e3 {[%clk 0:02:59]}  Bf5 {[%clk 0:02:57]} 7. Qf3 {[%clk 0:02:59]}  Bg6 {[%clk 0:02:56]} 8. Bxf6 {[%clk 0:02:59]}  gxf6 {[%clk 0:02:55]} 9. h4 {[%clk 0:02:55]}  Qb6 {[%clk 0:02:52]} 10. Qe2 {[%clk 0:02:45]}  h5 {[%clk 0:02:45]} 11. Nh3 {[%clk 0:02:43]}  Bh6 {[%clk 0:02:43]} 12. Nf4 {[%clk 0:02:37]}  Bxf4 {[%clk 0:02:42]} 13. exf4+ {[%clk 0:02:37]}  Kf8 {[%clk 0:02:42]} 14. Qd2 {[%clk 0:02:35]}  Nd7 {[%clk 0:02:39]} 15. Be2 {[%clk 0:02:35]}  Re8 {[%clk 0:02:38]} 16. O-O {[%clk 0:02:32]}  Kg7 {[%clk 0:02:34]} 17. a3 {[%clk 0:02:27]}  Be4 {[%clk 0:02:31]} 18. b4 {[%clk 0:02:25]}  Nf8 {[%clk 0:02:26]} 19. f3 {[%clk 0:02:19]}  Bf5 {[%clk 0:02:25]} 20. g3 {[%clk 0:02:17]}  Ng6 {[%clk 0:01:57]} 21. g4 {[%clk 0:02:06]}  Bc8 {[%clk 0:01:52]} 22. f5 {[%clk 0:01:55]}  Nxh4 {[%clk 0:01:50]} 23. Kf2 {[%clk 0:01:52]}  hxg4 {[%clk 0:01:49]} 24. fxg4 {[%clk 0:01:52]}  Qc7 {[%clk 0:01:47]} 25. Rh1 {[%clk 0:01:50]}  Nxf5 {[%clk 0:00:43]} 26. gxf5 {[%clk 0:01:49]}  Rh2+ {[%clk 0:00:42]} 27. Kf3 {[%clk 0:01:49]}  Reh8 {[%clk 0:00:26]} 28. Rag1+ {[%clk 0:01:32]}  Kf8 {[%clk 0:00:25]} 29. Rxh2 {[%clk 0:01:27]}  Qxh2 {[%clk 0:00:24]} 30. Qe1 {[%clk 0:01:16]}  Bxf5 {[%clk 0:00:18]} 31. Rg3 {[%clk 0:01:03]}  Rh4 {[%clk 0:00:15]} 32. Ke3 {[%clk 0:01:00]}  Rh3 {[%clk 0:00:13]} 33. Rxh3 {[%clk 0:00:59]}  Qxh3+ {[%clk 0:00:14]} 34. Kd2 {[%clk 0:00:56]}  Qh6+ {[%clk 0:00:13]} 35. Kd1 {[%clk 0:00:56]}  Qe3 {[%clk 0:00:13]} 36. Bf1 {[%clk 0:00:35]}  Qxd4+ {[%clk 0:00:12]} 37. Kc1 {[%clk 0:00:36]}  a5 {[%clk 0:00:10]} 38. bxa5 {[%clk 0:00:35]}  Qc5 {[%clk 0:00:09]} 39. Kb2 {[%clk 0:00:33]}  Qxa5 {[%clk 0:00:09]} 40. Qe3 {[%clk 0:00:33]}  Qc7 {[%clk 0:00:07]} 41. Qc5+ {[%clk 0:00:32]}  Qe7 {[%clk 0:00:05]} 42. Qf2 {[%clk 0:00:31]}  Qe5 {[%clk 0:00:05]} 43. Kb3 {[%clk 0:00:28]}  Be6 {[%clk 0:00:05]} 44. Kc2 {[%clk 0:00:27]}  b5 {[%clk 0:00:05]} 45. Bd3 {[%clk 0:00:27]}  Ke7 {[%clk 0:00:06]} 46. Ne2 {[%clk 0:00:26]}  Qd6 {[%clk 0:00:06]} 47. Qa7+ {[%clk 0:00:25]}  Bd7 {[%clk 0:00:05]} 48. Nd4 {[%clk 0:00:25]} 1-0


[Site "https://www.chess.com"]

[Event "Titled Tuesday Blitz July 20 2021"]
[White "Krivonosov, Oleg"]
[Black "Buchenau, Frank"]
[WhiteFideId "11600349"]
[BlackFideId "4604350"]
[WhiteElo "2469"]
[BlackElo "2255"]
[Result "1-0"]
[Round "11"]
[TimeControl "180+1"]
[Date "2021.07.21"]
[WhiteClock "0:00:20"]
[BlackClock "0:00:11"]

1. Nf3 {[%clk 0:03:00]}  Nf6 {[%clk 0:02:57]} 2. c4 {[%clk 0:03:00]}  e6 {[%clk 0:02:57]} 3. g3 {[%clk 0:02:59]}  b6 {[%clk 0:02:57]} 4. Bg2 {[%clk 0:02:58]}  Bb7 {[%clk 0:02:57]} 5. O-O {[%clk 0:02:58]}  Be7 {[%clk 0:02:58]} 6. Nc3 {[%clk 0:02:57]}  O-O {[%clk 0:02:58]} 7. d4 {[%clk 0:02:57]}  Ne4 {[%clk 0:02:58]} 8. Nxe4 {[%clk 0:02:57]}  Bxe4 {[%clk 0:02:59]} 9. Nh4 {[%clk 0:02:57]}  f5 {[%clk 0:02:58]} 10. Bxe4 {[%clk 0:02:54]}  fxe4 {[%clk 0:02:59]} 11. Ng2 {[%clk 0:02:53]}  d5 {[%clk 0:02:54]} 12. Qc2 {[%clk 0:02:50]}  Qd7 {[%clk 0:02:52]} 13. Be3 {[%clk 0:02:44]}  Nc6 {[%clk 0:02:47]} 14. Rac1 {[%clk 0:02:32]}  Rac8 {[%clk 0:02:46]} 15. cxd5 {[%clk 0:02:21]}  Nb4 {[%clk 0:02:43]} 16. Qxe4 {[%clk 0:02:09]}  exd5 {[%clk 0:02:43]} 17. Qb1 {[%clk 0:02:09]}  c5 {[%clk 0:02:42]} 18. a3 {[%clk 0:01:56]}  Nc6 {[%clk 0:02:37]} 19. dxc5 {[%clk 0:01:55]}  d4 {[%clk 0:02:37]} 20. Bd2 {[%clk 0:01:51]}  bxc5 {[%clk 0:02:36]} 21. Nf4 {[%clk 0:01:49]}  Kh8 {[%clk 0:02:28]} 22. Qe4 {[%clk 0:01:46]}  Bd6 {[%clk 0:02:21]} 23. Qe6 {[%clk 0:01:27]}  Qc7 {[%clk 0:02:20]} 24. b4 {[%clk 0:01:19]}  Rce8 {[%clk 0:02:19]} 25. Qd5 {[%clk 0:01:17]}  Re5 {[%clk 0:02:16]} 26. Qg2 {[%clk 0:01:07]}  Qb6 {[%clk 0:01:41]} 27. bxc5 {[%clk 0:01:02]}  Bxc5 {[%clk 0:01:26]} 28. Nd3 {[%clk 0:00:56]}  Rxe2 {[%clk 0:01:25]} 29. Rxc5 {[%clk 0:00:54]}  Rxd2 {[%clk 0:01:19]} 30. Rxc6 {[%clk 0:00:50]}  Qb5 {[%clk 0:01:13]} 31. Nf4 {[%clk 0:00:45]}  Qb2 {[%clk 0:00:51]} 32. Ne6 {[%clk 0:00:39]}  Re8 {[%clk 0:00:26]} 33. Qd5 {[%clk 0:00:37]}  d3 {[%clk 0:00:21]} 34. Qd7 {[%clk 0:00:32]}  Rg8 {[%clk 0:00:21]} 35. Rc8 {[%clk 0:00:30]}  h6 {[%clk 0:00:17]} 36. Nf4 {[%clk 0:00:23]}  Rxc8 {[%clk 0:00:14]} 37. Qxc8+ {[%clk 0:00:22]}  Kh7 {[%clk 0:00:15]} 38. Qf5+ {[%clk 0:00:22]}  Kg8 {[%clk 0:00:15]} 39. Nxd3 {[%clk 0:00:22]}  Qc2 {[%clk 0:00:13]} 40. Qe6+ {[%clk 0:00:21]}  Kh7 {[%clk 0:00:11]} 41. Nf4 {[%clk 0:00:20]}  Rd1 {[%clk 0:00:11]} 42. Rxd1 {[%clk 0:00:20]}  Qxd1+ {[%clk 0:00:11]} 43. Kg2 {[%clk 0:00:20]} 1-0


[Site "https://www.chess.com"]

[Event "Titled Tuesday Blitz July 20 2021"]
[White "Kubatko, Ivan"]
[Black "Hamley, Ryan"]
[WhiteFideId "24111473"]
[BlackFideId "30959497"]
[WhiteElo "2285"]
[BlackElo "2386"]
[Result "0-1"]
[Round "11"]
[TimeControl "180+1"]
[Date "2021.07.21"]
[WhiteClock "0:00:02"]
[BlackClock "0:01:09"]

1. e4 {[%clk 0:03:00]}  c5 {[%clk 0:02:53]} 2. Nc3 {[%clk 0:03:00]}  d6 {[%clk 0:02:53]} 3. d4 {[%clk 0:02:59]}  cxd4 {[%clk 0:02:53]} 4. Qxd4 {[%clk 0:03:00]}  Nc6 {[%clk 0:02:53]} 5. Bb5 {[%clk 0:03:00]}  Bd7 {[%clk 0:02:54]} 6. Bxc6 {[%clk 0:02:59]}  Bxc6 {[%clk 0:02:54]} 7. Be3 {[%clk 0:02:57]}  e5 {[%clk 0:02:53]} 8. Qd3 {[%clk 0:02:56]}  Nf6 {[%clk 0:02:53]} 9. O-O-O {[%clk 0:02:46]}  Be7 {[%clk 0:02:52]} 10. Nd5 {[%clk 0:02:26]}  Nxd5 {[%clk 0:02:35]} 11. exd5 {[%clk 0:02:27]}  Bd7 {[%clk 0:02:36]} 12. f4 {[%clk 0:02:09]}  exf4 {[%clk 0:02:29]} 13. Bd4 {[%clk 0:02:04]}  O-O {[%clk 0:02:27]} 14. Nh3 {[%clk 0:01:51]}  Bxh3 {[%clk 0:02:22]} 15. gxh3 {[%clk 0:01:50]}  Bf6 {[%clk 0:02:23]} 16. Rhg1 {[%clk 0:01:46]}  Rc8 {[%clk 0:02:20]} 17. Rdf1 {[%clk 0:01:43]}  Be5 {[%clk 0:02:12]} 18. Kb1 {[%clk 0:01:37]}  Qf6 {[%clk 0:02:09]} 19. c3 {[%clk 0:01:29]}  Rfe8 {[%clk 0:02:07]} 20. Rg4 {[%clk 0:01:27]}  Bxd4 {[%clk 0:02:00]} 21. Rgxf4 {[%clk 0:01:05]}  Qg6 {[%clk 0:01:38]} 22. Qxg6 {[%clk 0:00:58]}  hxg6 {[%clk 0:01:39]} 23. Rxd4 {[%clk 0:00:42]}  Re2 {[%clk 0:01:38]} 24. Rdf4 {[%clk 0:00:42]}  f6 {[%clk 0:01:34]} 25. R4f2 {[%clk 0:00:39]}  Re3 {[%clk 0:01:33]} 26. Rg1 {[%clk 0:00:32]}  Kf7 {[%clk 0:01:32]} 27. Rg3 {[%clk 0:00:32]}  Re5 {[%clk 0:01:30]} 28. Rd2 {[%clk 0:00:30]}  Rc5 {[%clk 0:01:26]} 29. Rgd3 {[%clk 0:00:26]}  b5 {[%clk 0:01:26]} 30. Kc2 {[%clk 0:00:21]}  f5 {[%clk 0:01:26]} 31. Kb3 {[%clk 0:00:20]}  a5 {[%clk 0:01:26]} 32. a4 {[%clk 0:00:17]}  Re4 {[%clk 0:01:26]} 33. axb5 {[%clk 0:00:15]}  Rxb5+ {[%clk 0:01:26]} 34. Kc2 {[%clk 0:00:15]}  Kf6 {[%clk 0:01:24]} 35. b3 {[%clk 0:00:14]}  a4 {[%clk 0:01:23]} 36. b4 {[%clk 0:00:09]}  Ke5 {[%clk 0:01:23]} 37. Kb2 {[%clk 0:00:07]}  f4 {[%clk 0:01:20]} 38. Ka3 {[%clk 0:00:07]}  Re3 {[%clk 0:01:09]} 39. Kxa4 {[%clk 0:00:06]}  Rxd3 {[%clk 0:01:08]} 40. Rxd3 {[%clk 0:00:07]}  Rxd5 {[%clk 0:01:08]} 41. Rxd5+ {[%clk 0:00:06]}  Kxd5 {[%clk 0:01:09]} 42. Kb3 {[%clk 0:00:02]}  f3 {[%clk 0:01:09]} 43. c4+ {[%clk 0:00:02]}  Kc6 {[%clk 0:01:09]} 0-1


[Site "https://www.chess.com"]